fUST/lending_fUST_20250514
["ID","MTS","AMOUNT","RATE_DAILY","PERIOD"]
[361041385,1747210242620,-151.0,0.00019233,2]
[361041387,1747210242630,-151.0,0.00019233,2]
[361041389,1747210242640,-500.0,0.00019233,2]
[361041391,1747210242650,-500.0,0.00019233,2]
[361041393,1747210242660,-500.0,0.00019233,2]
[361041395,1747210242669,-1971.0,0.00019233,2]
[361041397,1747210242679,-191.14402579,0.00019233,2]
[361041399,1747210242689,-500.0,0.00019233,2]
[361041401,1747210242698,-151.0,0.00019233,2]
[361041403,1747210242708,-500.0,0.00019233,2]
[361041405,1747210242717,-500.0,0.00019233,2]
[361041407,1747210242726,-500.0,0.00019233,2]
[361041409,1747210242735,-500.0,0.00019233,2]
[361041411,1747210242745,-12500.0,0.00019234,2]
[361041413,1747210242756,-12500.0,0.00019242,2]
[361041415,1747210242766,-12500.0,0.00019251,2]
[361041417,1747210242778,-12500.0,0.0001926,2]
[361041419,1747210242789,-500.0,0.0001926,2]
[361041421,1747210242801,-500.0,0.0001926,2]
[361041423,1747210242813,-500.0,0.0001926,2]
[361041425,1747210242823,-500.0,0.0001926,2]
[361041427,1747210242834,-500.0,0.0001926,2]
[361041429,1747210242846,-500.0,0.0001926,2]
[361041431,1747210242858,-457.0,0.0001926,2]
[361041433,1747210242877,-198.7478133,0.0001926,2]
[361041435,1747210242888,-500.0,0.0001926,2]
[361041437,1747210242904,-500.0,0.0001926,2]
[361041439,1747210242915,-597.06416629,0.0001926,2]
[361041441,1747210242926,-500.0,0.0001926,2]
[361041443,1747210242938,-151.0,0.0001926,2]
[361041445,1747210242949,-189.95743123,0.0001926,2]
[361041447,1747210242960,-151.0,0.0001926,2]
[361041449,1747210242970,-500.0,0.0001926,2]
[361041451,1747210242980,-500.0,0.0001926,2]
[361041453,1747210242991,-500.0,0.0001926,2]
[361041455,1747210243002,-1971.0,0.0001926,2]
[361041457,1747210243013,-500.0,0.0001926,2]
[361041459,1747210243024,-300.83237612,0.0001926,2]
[361041461,1747210243034,-500.0,0.0001926,2]
[361041463,1747210243046,-245.4163669,0.0001926,2]
[361041465,1747210243056,-500.0,0.0001926,2]
[361041467,1747210243066,-500.0,0.0001926,2]
[361041469,1747210243076,-500.0,0.00019273,2]
[361041472,1747210243086,-414.70218483,0.00019273,2]
[361041474,1747210243096,-491.35109531,0.00019273,2]
[361041475,1747210243109,-500.0,0.00019273,2]
[361041477,1747210243126,-500.0,0.00019273,2]
[361041480,1747210243137,-500.0,0.00019273,2]
[361041482,1747210243148,-500.0,0.00019273,2]
[361041484,1747210243158,-500.0,0.00019273,2]
[361041485,1747210243168,-500.0,0.00019273,2]
[361041487,1747210243178,-500.0,0.00019273,2]
[361041489,1747210243188,-500.0,0.00019273,2]
[361041491,1747210243199,-500.0,0.00019273,2]
[361041493,1747210243211,-500.0,0.00019273,2]
[361041495,1747210243221,-500.0,0.00019273,2]
[361041497,1747210243232,-500.0,0.00019273,2]
[361041500,1747210243242,-397.65834403,0.00019273,2]
[361041502,1747210243251,-238.68073928,0.00019273,2]
[361041504,1747210243261,-500.0,0.00019273,2]
[361041506,1747210243272,-500.74060197,0.00019273,2]
[361041508,1747210243282,-500.0,0.00019273,2]
[361041510,1747210243291,-500.0,0.00019273,2]
[361041513,1747210243301,-600.0,0.00019273,2]
[361041516,1747210243313,-500.0,0.00019273,2]
[361041518,1747210243323,-500.0,0.00019273,2]
[361041522,1747210243334,-500.0,0.00019273,2]
[361041526,1747210243344,-500.0,0.00019273,2]
[361041528,1747210243353,-500.57741936,0.00019273,2]
[361041532,1747210243363,-500.0,0.00019273,2]
[361041535,1747210243379,-500.0,0.00019273,2]
[361041538,1747210243390,-500.778991,0.00019273,2]
[361041541,1747210243400,-500.0,0.00019273,2]
[361041544,1747210243411,-500.0,0.00019273,2]
[361041546,1747210243422,-500.0,0.00019273,2]
[361041549,1747210243432,-500.0,0.00019273,2]
[361041552,1747210243441,-500.0,0.00019273,2]
[361041555,1747210243451,-500.0,0.00019273,2]
[361041558,1747210243472,-151.0,0.00019273,2]
[361041560,1747210243481,-500.43511564,0.00019273,2]
[361041562,1747210243491,-524.9451591,0.00019273,2]
[361041563,1747210243500,-500.0,0.00019273,2]
[361041566,1747210243510,-500.58989892,0.00019273,2]
[361041568,1747210243520,-500.0,0.00019273,2]
[361041570,1747210243529,-500.0,0.00019273,2]
[361041572,1747210243539,-500.0,0.00019273,2]
[361041574,1747210243548,-500.0,0.00019273,2]
[361041576,1747210243557,-500.0,0.00019273,2]
[361041578,1747210243567,-500.0,0.00019273,2]
[361041579,1747210243576,-500.0,0.00019273,2]
[361041581,1747210243585,-500.0,0.00019273,2]
[361041583,1747210243594,-210.51364861,0.00019273,2]
[361041585,1747210243604,-500.0,0.00019273,2]
[361041587,1747210243613,-4000.0,0.00019278,2]
[361041589,1747210243627,-500.0,0.00019288,2]
[361041591,1747210243637,-500.0,0.00019288,2]
[361041593,1747210243647,-178.97012032,0.00019288,2]
[361041595,1747210243657,-500.0,0.00019288,2]
[361041597,1747210243667,-501.53374011,0.00019288,2]
[361041599,1747210243676,-500.0,0.00019288,2]
[361041601,1747210243686,-457.0,0.00019288,2]
[361041603,1747210243696,-500.0,0.00019288,2]
[361041605,1747210243706,-237.46755671,0.00019288,2]
[361041607,1747210243715,-500.0,0.00019288,2]
[361041609,1747210243725,-243.56976346,0.00019288,2]
[361041611,1747210243734,-151.0,0.00019288,2]
[361041613,1747210243744,-229.18398353,0.00019288,2]
[361041615,1747210243760,-500.0,0.00019288,2]
[361041617,1747210243771,-500.0,0.00019288,2]
[361041619,1747210243782,-1971.0,0.00019288,2]
[361041621,1747210243792,-501.96055546,0.00019288,2]
[361041623,1747210243805,-500.0,0.00019288,2]
[361041625,1747210243815,-500.0,0.00019288,2]
[361041627,1747210243827,-500.0,0.00019288,2]
[361041629,1747210243838,-3624.66656988,0.00019288,2]
[361041631,1747210243849,-4500.0,0.00019306,2]
[361041633,1747210243860,-500.23694846,0.00019315,2]
[361041635,1747210243874,-500.67666812,0.00019315,2]
[361041637,1747210243885,-373.73802865,0.00019315,2]
[361041639,1747210243896,-500.0,0.00019315,2]
[361041641,1747210243907,-457.0,0.00019315,2]
[361041643,1747210243917,-500.0,0.00019315,2]
[361041645,1747210243931,-500.0,0.00019315,2]
[361041647,1747210243941,-225.47207495,0.00019315,2]
[361041649,1747210243951,-500.0,0.00019315,2]
[361041652,1747210243963,-364.63906462,0.00019315,2]
[361041654,1747210243975,-1971.0,0.00019315,2]
[361041657,1747210243986,-228.16104638,0.00019315,2]
[361041660,1747210243997,-592.02511667,0.00019315,2]
[361041662,1747210244008,-500.0,0.00019315,2]
[361041666,1747210244019,-30581.21614096,0.0001932,2]
[361041669,1747210244034,-100000.0,0.00019329,2]
[361041672,1747210244044,-500.0,0.00019342,2]
[361041674,1747210244055,-457.0,0.00019342,2]
[361041676,1747210244064,-502.26812893,0.00019342,2]
[361041678,1747210244074,-259.70172261,0.00019342,2]
[361041680,1747210244084,-500.0,0.00019342,2]
[361041682,1747210244095,-1971.0,0.00019342,2]
[361041684,1747210244104,-500.0,0.00019342,2]
[361041686,1747210244114,-500.0,0.0001937,2]
[361041688,1747210244127,-457.0,0.0001937,2]
[361041690,1747210244137,-500.0,0.0001937,2]
[361041692,1747210244147,-1971.0,0.0001937,2]
[361041694,1747210244158,-500.0,0.0001937,2]
[361041695,1747210244167,-500.0,0.00019397,2]
[361041698,1747210244178,-457.0,0.00019397,2]
[361041700,1747210244187,-500.0,0.00019397,2]
[361041702,1747210244197,-1971.0,0.00019397,2]
[361041703,1747210244207,-500.0,0.00019397,2]
[361041705,1747210244218,-500.0,0.00019425,2]
[361041707,1747210244228,-457.0,0.00019425,2]
[361041709,1747210244239,-500.0,0.00019425,2]
[361041712,1747210244250,-1971.0,0.00019425,2]
[361041713,1747210244260,-500.0,0.00019425,2]
[361041715,1747210244270,-500.0,0.00019452,2]
[361041717,1747210244280,-457.0,0.00019452,2]
[361041719,1747210244291,-500.0,0.00019452,2]
[361041721,1747210244300,-1971.0,0.00019452,2]
[361041723,1747210244310,-500.0,0.00019452,2]
[361041725,1747210244321,-1327.63,0.00019452,2]
[361041727,1747210244331,-1152.21,0.00019452,2]
[361041730,1747210244343,-467.21,0.00019452,2]
[361041732,1747210244354,-463.86,0.00019452,2]
[361041734,1747210244368,-626.17,0.00019452,2]
[361041736,1747210244378,-1989.37,0.00019452,2]
[361041738,1747210244390,-1978.58,0.00019452,2]
[361041752,1747210244528,-618.56,0.00019452,2]
[361041755,1747210244538,-1613.0,0.00019477,2]
[361041758,1747210244549,-633.69484497,0.00019479,2]
[361041761,1747210244559,-457.0,0.00019479,2]
[361041764,1747210244569,-500.0,0.00019479,2]
[361041767,1747210244579,-1971.0,0.00019479,2]
[361041770,1747210244589,-500.0,0.00019479,2]
[361041773,1747210244600,-1006.206463,0.000195,2]
[361041776,1747210244609,-457.0,0.00019507,2]
[361041779,1747210244622,-500.0,0.00019507,2]
[361041782,1747210244632,-1971.0,0.00019507,2]
[361041784,1747210244642,-500.0,0.00019507,2]
[361041786,1747210244652,-457.0,0.00019534,2]
[361041788,1747210244662,-500.0,0.00019534,2]
[361041790,1747210244672,-1971.0,0.00019534,2]
[361041792,1747210244682,-500.0,0.00019534,2]
[361041794,1747210244693,-457.0,0.00019562,2]
[361041796,1747210244703,-500.0,0.00019562,2]
[361041798,1747210244712,-1971.0,0.00019562,2]
[361041800,1747210244723,-500.0,0.00019562,2]
[361041802,1747210244732,-457.0,0.00019589,2]
[361041804,1747210244742,-305.49764551,0.00019589,2]
[361041806,1747210244755,-1971.0,0.00019589,2]
[361041808,1747210244765,-500.0,0.00019589,2]
[361041810,1747210244774,-500.0,0.000196,2]
[361041812,1747210244785,-498.83994208,0.000196,2]
[361041814,1747210244794,-457.0,0.00019616,2]
[361041816,1747210244804,-1971.0,0.00019616,2]
[361041818,1747210244814,-515.52783701,0.00019616,2]
[361041820,1747210244824,-7096.96413682,0.00019624,2]
[361041822,1747210244834,-457.0,0.00019644,2]
[361041824,1747210244844,-1971.0,0.00019644,2]
[361041826,1747210244854,-457.0,0.00019671,2]
[361041828,1747210244869,-1971.0,0.00019671,2]
[361041830,1747210244880,-457.0,0.00019699,2]
[361041832,1747210244890,-1971.0,0.00019699,2]
[361041834,1747210244900,-457.0,0.00019726,2]
[361041835,1747210244909,-1971.0,0.00019726,2]
[361041837,1747210244919,-1327.63,0.00019726,2]
[361041840,1747210244930,-1152.21,0.00019726,2]
[361041841,1747210244939,-467.21,0.00019726,2]
[361041843,1747210244950,-463.86,0.00019726,2]
[361041845,1747210244960,-626.17,0.00019726,2]
[361041847,1747210244969,-1989.37,0.00019726,2]
[361041849,1747210244979,-1978.58,0.00019726,2]
[361041851,1747210244989,-618.56,0.00019726,2]
[361041853,1747210244999,-457.0,0.00019753,2]
[361041855,1747210245009,-1971.0,0.00019753,2]
[361041857,1747210245018,-457.0,0.00019781,2]
[361041859,1747210245028,-1971.0,0.00019781,2]
[361041861,1747210245037,-802.3659934,0.000198,2]
[361041863,1747210245047,-466.6657701,0.00019808,2]
[361041865,1747210245058,-1992.34395674,0.00019808,2]
[361041867,1747210245067,-1000.0,0.00019821,2]
[361041869,1747210245077,-1034.40667961,0.00019821,2]
[361041871,1747210245088,-1000.0,0.00019821,2]
[361041873,1747210245098,-1000.0,0.00019821,2]
[361041875,1747210245109,-1000.00804284,0.00019821,2]
[361041877,1747210245123,-800.60328983,0.00019821,2]
[361041879,1747210245133,-1000.65021858,0.00019821,2]
[361041881,1747210245142,-1000.0,0.00019821,2]
[361041883,1747210245152,-1000.0,0.00019821,2]
[361041885,1747210245162,-1036.29891431,0.00019821,2]
[361041887,1747210245171,-1000.54776023,0.00019821,2]
[361041889,1747210245181,-1000.0,0.00019821,2]
[361041891,1747210245191,-1000.0,0.00019821,2]
[361041893,1747210245201,-914.87223616,0.00019821,2]
[361041895,1747210245210,-1200.0,0.00019821,2]
[361041896,1747210245220,-1000.0,0.00019821,2]
[361041897,1747210245230,-1000.0,0.00019821,2]
[361041898,1747210245239,-1000.0,0.00019821,2]
[361041899,1747210245249,-1000.0,0.00019821,2]
[361041900,1747210245259,-1000.0,0.00019821,2]
[361041901,1747210245268,-1000.0,0.00019821,2]
[361041902,1747210245279,-342.70336803,0.00019821,2]
[361041903,1747210245288,-1000.0,0.00019821,2]
[361041904,1747210245298,-611.24819467,0.00019821,2]
[361041905,1747210245307,-1000.0,0.00019821,2]
[361041906,1747210245317,-324.46779439,0.00019821,2]
[361041907,1747210245327,-161.63604128,0.00019821,2]
[361041908,1747210245336,-271.49442647,0.00019821,2]
[361041909,1747210245345,-500.0,0.00019821,2]
[361041910,1747210245355,-640.39086489,0.00019821,2]
[361041911,1747210245364,-1000.0,0.00019821,2]
[361041912,1747210245376,-1000.0,0.00019821,2]
[361041913,1747210245385,-1000.0,0.00019821,2]
[361041914,1747210245395,-152.99615699,0.00019821,2]
[361041915,1747210245405,-1000.0,0.00019821,2]
[361041916,1747210245415,-500.5492011,0.00019821,2]
[361041917,1747210245425,-1000.0,0.00019821,2]
[361041918,1747210245434,-1000.0,0.00019821,2]
[361041919,1747210245443,-4500.0,0.00019826,2]
[361041920,1747210245453,-5000.0,0.00019854,2]
[361041921,1747210245462,-4611.40074329,0.000199,2]
[361041922,1747210245471,-358.11253362,0.00019972,2]
[361041923,1747210245481,-150.75461678,0.0002,2]
[361041924,1747210245490,-5000.0,0.0002,2]
[361041925,1747210245501,-5000.0,0.0002,2]
[361041926,1747210245511,-10559.54589885,0.0002,2]
[361041927,1747210245520,-1178.58075511,0.0002,2]
[361041928,1747210245530,-14529.30132845,0.0002,20]
[361041929,1747210245539,-358.88634619,0.0002,2]
[361041930,1747210245549,-30000.0,0.0002,2]
[361041932,1747210245558,-3546.7079149,0.0002,2]
[361041934,1747210245568,-1182.80561296,0.0002,2]
[361041936,1747210245578,-67184.73660507,0.0002,2]
[361041938,1747210245587,-1537.11608313,0.0002,2]
[361041940,1747210245596,-2040.0,0.0002,7]
[361041942,1747210245606,-13707.67105361,0.0002,2]
[361041944,1747210245618,-50000.0,0.0002,7]
[361041945,1747210245629,-50000.0,0.0002,7]
[361041947,1747210245639,-50000.0,0.0002,7]
[361041949,1747210245648,-42614.86433513,0.0002,7]
[361041971,1747210245869,-160.0,0.0001699,3]
[361041974,1747210245880,-2470.1,0.0002,7]
[361041976,1747210245892,-4915.03566487,0.0002,7]
[361041978,1747210245903,-4408.05351433,0.0002,7]
[361041980,1747210245915,-9736.4,0.0002,7]
[361041982,1747210245928,-13041.0,0.0002,7]
[361041984,1747210245939,-3277.33191974,0.0002,7]
[361041987,1747210245963,-5197.44762328,0.0002,7]
[361041993,1747210246014,-6518.41608126,0.0002,7]
[361041996,1747210246026,-1296.43517717,0.0002,7]
[361042281,1747211431839,-5000.0,0.000112,2]
[361042282,1747211431851,-349.6759517,0.00011427,2]
[361042283,1747211431862,-335.13314209,0.00011658,2]
[361042284,1747211431872,-180.0,0.00011665,2]
[361042285,1747211431882,-300.0,0.00011666,2]
[361042286,1747211431892,-300.0,0.00011666,2]
[361042287,1747211431901,-1200.0,0.00011666,2]
[361042288,1747211431911,-13991.88027384,0.00011667,2]
[361042289,1747211431923,-847.4791886,0.00011667,2]
[361042290,1747211431940,-83110.69901786,0.00011667,2]
[361042291,1747211431950,-466.05532424,0.00011783,2]
[361042292,1747211431960,-171.98120971,0.00011783,2]
[361042293,1747211431970,-500.0,0.00011783,2]
[361042294,1747211431980,-372.21829143,0.00011783,2]
[361042295,1747211431990,-158.01062623,0.00011783,2]
[361042296,1747211432000,-2238.0,0.00011791,2]
[361042297,1747211432010,-250.0,0.00012002,2]
[361042298,1747211432020,-1174.0,0.00012011,2]
[361042299,1747211432030,-5054.3352794,0.00012016,2]
[361042300,1747211432040,-152.0,0.00012103,2]
[361042301,1747211432050,-170.2249505,0.00012409,2]
[361042302,1747211432060,-420.0,0.00012811,2]
[361042303,1747211432070,-3785.04753985,0.000129,2]
[361042304,1747211432080,-3785.04753963,0.00013417,2]
[361042305,1747211432089,-500.0,0.00013545,2]
[361042306,1747211432099,-186.44639133,0.00013545,2]
[361042307,1747211432112,-500.0,0.00013545,2]
[361042308,1747211432124,-155.0,0.00013698,2]
[361042309,1747211432133,-400.0,0.00013698,2]
[361042310,1747211432143,-400.0,0.00013698,2]
[361042311,1747211432153,-400.0,0.00013698,2]
[361042312,1747211432164,-400.0,0.00013698,2]
[361042313,1747211432174,-463.94,0.00013698,2]
[361042314,1747211432184,-400.0,0.00013698,2]
[361042315,1747211432195,-467.35369879,0.00013698,2]
[361042316,1747211432205,-400.0,0.00013698,2]
[361042317,1747211432215,-400.0,0.00013698,2]
[361042318,1747211432225,-627.104754,0.00013699,2]
[361042319,1747211432235,-500.0,0.00013699,2]
[361042320,1747211432245,-500.0,0.00013699,2]
[361042321,1747211432255,-500.0,0.00013699,2]
[361042322,1747211432265,-500.0,0.00013699,2]
[361042323,1747211432276,-251.9626834,0.00013699,2]
[361042324,1747211432287,-500.0,0.00013722,2]
[361042325,1747211432298,-500.0,0.0001373,2]
[361042326,1747211432308,-500.0,0.0001373,2]
[361042327,1747211432317,-500.0,0.00013733,2]
[361042328,1747211432326,-500.0,0.00013733,2]
[361042329,1747211432336,-500.0,0.00013733,2]
[361042330,1747211432345,-500.0,0.00013733,2]
[361042331,1747211432356,-500.0,0.00013733,2]
[361042332,1747211432366,-502.74246795,0.00013733,2]
[361042333,1747211432375,-500.0,0.00013733,2]
[361042334,1747211432384,-500.0,0.00013733,2]
[361042335,1747211432395,-500.0,0.00013733,2]
[361042336,1747211432404,-422.10997939,0.00013733,2]
[361042337,1747211432413,-500.0,0.00013733,2]
[361042338,1747211432423,-500.0,0.00013733,2]
[361042339,1747211432433,-590.61958894,0.00013733,2]
[361042340,1747211432442,-500.0,0.00013744,2]
[361042341,1747211432452,-500.0,0.00013744,2]
[361042342,1747211432461,-407.67132712,0.00013782,2]
[361042343,1747211432471,-500.0,0.00013782,2]
[361042344,1747211432481,-500.0,0.00013914,2]
[361042345,1747211432490,-500.0,0.00013914,2]
[361042346,1747211432500,-500.0,0.00013914,2]
[361042347,1747211432509,-3785.04753963,0.00013934,2]
[361042348,1747211432519,-500.0,0.0001394,2]
[361042349,1747211432528,-400.0,0.00013972,2]
[361042350,1747211432538,-400.0,0.00013972,2]
[361042351,1747211432547,-400.0,0.00013972,2]
[361042352,1747211432557,-218.75,0.00013972,2]
[361042353,1747211432567,-400.0,0.00013972,2]
[361042354,1747211432577,-226.37112203,0.00013972,2]
[361042355,1747211432587,-400.0,0.00013972,2]
[361042356,1747211432596,-500.0,0.00014033,2]
[361042357,1747211432606,-587.0,0.00014068,2]
[361042358,1747211432616,-268.57,0.000142,2]
[361042359,1747211432625,-527.77825859,0.00014246,2]
[361042360,1747211432635,-287.10452125,0.00014246,2]
[361042361,1747211432644,-400.0,0.00014246,2]
[361042362,1747211432654,-352.33468212,0.00014246,2]
[361042363,1747211432668,-400.0,0.00014246,2]
[361042364,1747211432677,-427.3039505,0.0001425,2]
[361042365,1747211432687,-501.30710149,0.0001425,2]
[361042366,1747211432696,-500.0,0.00014281,2]
[361042367,1747211432706,-501.61339551,0.00014281,2]
[361042368,1747211432715,-500.0,0.00014281,2]
[361042369,1747211432725,-1000.0,0.00014281,2]
[361042370,1747211432734,-208.61993076,0.00014281,2]
[361042371,1747211432743,-3785.04753963,0.00014452,2]
[361042372,1747211432753,-1000.0,0.00014462,2]
[361042373,1747211432763,-400.0,0.0001452,2]
[361042374,1747211432772,-400.0,0.0001452,2]
[361042375,1747211432781,-404.0,0.00014692,2]
[361042376,1747211432791,-378.64548735,0.00014794,2]
[361042377,1747211432800,-389.4,0.00014794,2]
[361042378,1747211432810,-294.67149663,0.00014799,2]
[361042379,1747211432820,-1500.0,0.00014829,2]
[361042380,1747211432829,-400.0,0.00014899,2]
[361042381,1747211432839,-3785.04753963,0.00014969,2]
[361042382,1747211432849,-1500.0,0.0001501,2]
[361042383,1747211432860,-2000.0,0.00015377,2]
[361042384,1747211432870,-823.0,0.00015449,2]
[361042385,1747211432879,-3785.04753963,0.00015486,2]
[361042386,1747211432888,-160.0,0.00015536,2]
[361042387,1747211432898,-160.0,0.00015536,2]
[361042388,1747211432908,-160.0,0.00015536,2]
[361042389,1747211432919,-212.21045333,0.00015536,2]
[361042390,1747211432930,-160.0,0.00015536,2]
[361042391,1747211432939,-12627.42419379,0.00015536,2]
[361042392,1747211432950,-160.0,0.00015536,2]
[361042393,1747211432960,-160.0,0.00015536,2]
[361042394,1747211432971,-422.27619506,0.00015536,2]
[361042395,1747211432981,-997.9747837,0.00015536,2]
[361042396,1747211432991,-160.0,0.00015536,2]
[361042397,1747211433002,-2000.0,0.00015558,2]
[361042398,1747211433011,-2539.62873547,0.00015925,2]
[361042399,1747211433021,-3785.04753963,0.00016003,2]
[361042400,1747211433031,-2500.0,0.00016106,2]
[361042401,1747211433041,-379.535,0.00016308,2]
[361042402,1747211433051,-3785.04753963,0.00016521,2]
[361042403,1747211433061,-3000.0,0.00016654,2]
[361042404,1747211433071,-882.83891173,0.0001689,2]
[361042405,1747211433081,-1152.0,0.00016966,2]
[361042406,1747211433091,-160.0,0.0001699,3]
[361042407,1747211433102,-12627.42419379,0.0001699,3]
[361042408,1747211433112,-212.21045333,0.0001699,3]
[361042409,1747211433125,-997.9747837,0.0001699,3]
[361042410,1747211433135,-3785.04753963,0.00017038,2]
[361042411,1747211433145,-3500.0,0.00017202,2]
[361042412,1747211433155,-3785.04753963,0.00017555,2]
[361042413,1747211433166,-882.83891172,0.00017643,2]
[361042414,1747211433177,-404.0,0.00017692,2]
[361042415,1747211433187,-1670.11885744,0.0001775,2]
[361042416,1747211433198,-3785.04753963,0.00018072,2]
[361042417,1747211433208,-882.83891172,0.00018395,2]
[361042418,1747211433218,-500.0,0.00018504,2]
[361042419,1747211433228,-3785.04753963,0.0001859,2]
[361042420,1747211433238,-1152.0,0.00018631,2]
[361042421,1747211433248,-6631.01247441,0.000189,2]
[361042422,1747211433258,-3785.04753963,0.00019107,2]
[361042423,1747211433268,-882.83891172,0.00019148,2]
[361042424,1747211433279,-1157.150704,0.00019178,2]
[361042425,1747211433289,-166.0,0.00019178,2]
[361042426,1747211433301,-569.2587971,0.00019178,2]
[361042427,1747211433311,-153.1485808,0.00019178,2]
[361042428,1747211433321,-175.7570261,0.00019178,2]
[361042429,1747211433331,-318.7831695,0.00019178,2]
[361042430,1747211433341,-175.7570261,0.00019178,2]
[361042431,1747211433351,-569.2587971,0.00019178,2]
[361042432,1747211433363,-157.9553211,0.00019178,2]
[361042433,1747211433373,-157.9553211,0.00019178,2]
[361042434,1747211433383,-175.7570261,0.00019178,2]
[361042435,1747211433393,-569.2587971,0.00019178,2]
[361042436,1747211433598,-175.7570261,0.00019178,2]
[361042437,1747211433610,-157.9553211,0.00019178,2]
[361042438,1747211433620,-569.2587971,0.00019178,2]
[361042439,1747211433630,-157.9553211,0.00019178,2]
[361042440,1747211433639,-175.7570261,0.00019178,2]
[361042441,1747211433649,-569.2587971,0.00019178,2]
[361042442,1747211433659,-175.7570261,0.00019178,2]
[361042443,1747211433668,-157.9553211,0.00019178,2]
[361042444,1747211433678,-569.2587971,0.00019178,2]
[361042445,1747211433689,-569.2587971,0.00019178,2]
[361042446,1747211433699,-157.9553211,0.00019178,2]
[361042447,1747211433708,-157.9553211,0.00019178,2]
[361042448,1747211433717,-175.7570261,0.00019178,2]
[361042449,1747211433728,-569.2587971,0.00019178,2]
[361042450,1747211433737,-12500.0,0.00019244,2]
[361042451,1747211433747,-12500.0,0.00019253,2]
[361042452,1747211433757,-12500.0,0.0001926,2]
[361042453,1747211433767,-12500.0,0.00019262,2]
[361042454,1747211433778,-12500.0,0.00019271,2]
[361042455,1747211433787,-12500.0,0.0001928,2]
[361042456,1747211433797,-12500.0,0.00019288,2]
[361042457,1747211433807,-12500.0,0.00019297,2]
[361042458,1747211433817,-12500.0,0.00019306,2]
[361042459,1747211433826,-12500.0,0.00019315,2]
[361042460,1747211433836,-48853.51364159,0.00019329,2]
[361042461,1747211433846,-238.46617629,0.00019509,2]
[361042462,1747211433855,-3785.04753963,0.00019624,2]
[361042463,1747211433865,-1066.996651,0.0001974,5]
[361042464,1747211433875,-1000.0,0.0001976,5]
[361042465,1747211433884,-1000.0,0.0001978,5]
[361042466,1747211433893,-1629.226381,0.0001978,5]
[361042467,1747211433903,-1000.0,0.000198,5]
[361042468,1747211433912,-1000.0,0.000198,5]
[361042469,1747211433921,-151.0,0.00019808,2]
[361042470,1747211433931,-1000.0,0.0001982,5]
[361042471,1747211433940,-1000.0,0.0001982,5]
[361042472,1747211433950,-151.0,0.00019835,2]
[361042473,1747211433959,-1000.0,0.0001984,5]
[361042474,1747211433968,-1000.0,0.0001984,5]
[361042475,1747211433978,-1000.0,0.0001986,5]
[361042476,1747211433987,-1000.0,0.0001986,5]
[361042477,1747211433997,-203.41691371,0.00019863,2]
[361042478,1747211434006,-544.97965236,0.0001987,2]
[361042479,1747211434016,-500.0,0.00019873,2]
[361042480,1747211434026,-500.0,0.00019873,2]
[361042481,1747211434036,-500.0,0.00019873,2]
[361042482,1747211434046,-500.0,0.00019873,2]
[361042483,1747211434055,-500.0,0.00019873,2]
[361042484,1747211434066,-500.0,0.00019873,2]
[361042485,1747211434076,-500.0,0.00019873,2]
[361042486,1747211434086,-1000.0,0.0001988,5]
[361042487,1747211434095,-1000.0,0.0001988,5]
[361042488,1747211434105,-1410.6439571,0.000199,2]
[361042489,1747211434115,-1000.0,0.000199,5]
[361042490,1747211434127,-1000.0,0.000199,5]
[361042491,1747211434136,-882.83891172,0.000199,2]